[Event "Israeli Women Championship 2022"]
[Site "Yosiah Arad"]
[Date "2022.12.08"]
[Round "4.3"]
[White "Levitan, Ronit"]
[Black "Tashkinova, Sofiia"]
[Result "1-0"]
[ECO "C01"]
[WhiteElo "1989"]
[BlackElo "2006"]
[Annotator "TA"]
[PlyCount "133"]
[EventDate "2022.12.05"]
[EventType "tourn"]
[EventCountry "ISR"]
[SourceTitle "playchess.com"]
[Source "ChessBase"]
[SourceQuality "1"]
[TimeControl "40/5400+30:1800+30"]

{[%evp 18,133,16,25,39,13,21,0,3,10,2,0,31,27,41,11,15,7,10,-31,-20,-36,0,-7,0,0,15,7,0,9,16,13,56,10,16,22,27,0,391,403,395,93,93,93,93,-6,-16,-91,-45,-42,-50,-58,0,0,0,0,0,0,0,-40,-16,-13,-20,-12,-25,-25,0,-29,0,0,0,0,0,0,0,0,0,0,165,0,381,381,443,337,676,669,576,657,1277,581,1814,1492,12837,12838,12839,12839,12840,12840,12841,12842,12842,12843,12841,12841,12843,12839,12840,12839,12841,12841,12843,12844,12844,12845,12845,12845,12845,12845]} 1. e4 {[%emt 0:00:21]} e6 {[%emt 0:00:09]} 2. d4 {[%emt 0:00:26]} d5 {[%emt 0:00:06]} 3. exd5 {[%emt 0:00:10]} exd5 {[%emt 0:00:08]} 4. Nf3 {[%emt 0:00:08]} Nc6 {[%emt 0:05:04]} 5. Bd3 {[%emt 0:01:23]} Bd6 {[%emt 0:00:35]} 6. O-O {[%emt 0:01:49]} Nge7 {[%emt 0:01:34]} 7. c3 {[%emt 0:00:17]} Bg4 {[%emt 0:02:10]} 8. Re1 {[%emt 0:01:33]} Qd7 {[%emt 0:02:08]} 9. Nbd2 {[%emt 0:02:34]} O-O {[%emt 0:03:45]} 10. Nf1 {[%emt 0:04:12]} Bf5 {[%emt 0:03:34] [#] C01: French: Exchange Variation.} 11. Bb5 $146 {[%emt 0:10:07]} ({Predecessor:} 11. Ne5 Bxe5 12. dxe5 Rae8 13. Bg5 Bxd3 14. Qxd3 Ng6 15. Red1 Rxe5 16. f4 Ree8 17. f5 Nge5 18. Qg3 {0-1 (33) Devallee,J (2270)-Bauer,C (2640) Vandoeuvre 2021}) 11... a6 {[%emt 0:02:59]} 12. Ba4 {[%emt 0:00:56]} b5 {[%emt 0:02:18] The position is equal.} 13. Bb3 {[%emt 0:00:44]} Na5 {[%emt 0:02:22]} 14. Bc2 {[%emt 0:03:59]} Nc4 {[%emt 0:02:20]} (14... f6) 15. b3 {[%emt 0:04:19] Threatens to win with Bxf5.} Nb6 {[%emt 0:01:29]} 16. Ng3 {[%emt 0:02:47]} Bxc2 {[%emt 0:01:48]} 17. Qxc2 {[%emt 0:00:05]} f6 {[%emt 0:01:24]} 18. a4 {[%emt 0:27:41]} bxa4 {[%emt 0:01:54]} 19. bxa4 {[%emt 0:36:29]} Nc4 {[%emt 0:01:28]} 20. Nd2 {[%emt 0:00:00]} Qc6 {[%emt 0:01:22]} 21. Nxc4 {[%emt 0:00:00]} Qxc4 {[%emt 0:00:30]} 22. Ba3 {[%emt 0:00:00]} Bxa3 {[%emt 0:02:20]} 23. Rxa3 {[%emt 0:00:00]} Rfe8 {[%emt 0:02:11][%cal Oe7f5]} 24. Raa1 {[%emt 0:00:00]} Ng6 {[%emt 0:10:49]} 25. Qf5 {[%emt 0:00:00]} (25. Nf5 $14) 25... Rad8 $11 {[%emt 0:06:02]} 26. Rxe8+ {[%emt 0:00:00]} Rxe8 {[%emt 0:00:27]} 27. Qd7 {[%emt 0:00:00] White wants to mate with Nf5.} Kf8 $2 {[%emt 0:09:45][%mdl 8192]} (27... Re7 $11 28. Qd8+ Kf7) 28. Nf5 $18 {[%emt 0:00:00][%csl Gf5][%cal Rd7g7]} Ne7 {[%emt 0:00:41][%cal Bg6e7,Be7c6,Bc6d4,Bd4e2][%mdl 32] [#]} 29. Re1 $2 {[%emt 0:00:00]} (29. Nxg7 $1 $18 {[%mdl 512] and the rest is easy.} Rb8 30. Ne6+ Kf7 31. Nxc7 (31. Re1 $2 Qe2 $19)) 29... Qxc3 $16 {[%emt 0:01:32][%cal Rc3e1]} 30. Qe6 {[%emt 0:00:00][%cal Rf5e7]} Qc6 {[%emt 0:07:08]} 31. Qxc6 {[%emt 0:02:07] White is much more active.} ({Not} 31. Nxe7 Qxe6 32. Rxe6 Rxe7 33. Rxe7 Kxe7 $17) (31. Nxg7 $16 Qxe6 32. Nxe6+ Kf7 33. Nxc7) 31... Nxc6 {[%emt 0:00:07][%cal Re8e1][%mdl 4096] Endgame KRN-KRN} 32. Rc1 {[%emt 0:00:02]} (32. Rxe8+ $11 {keeps the balance.} Kxe8 33. Nxg7+ Kd7 34. Nf5) 32... g6 {[%emt 0:11:58]} (32... Nb4 $17 33. g3 g6) 33. Ne3 $1 $15 {[%emt 0:02:07]} Nxd4 {[%emt 0:04:30]} 34. Rxc7 {[%emt 0:00:04]} Rd8 {[%emt 0:03:08]} (34... Nf5 $15) 35. Rxh7 $11 {[%emt 0:01:32]} Ne2+ {[%emt 0:01:12]} 36. Kf1 {[%emt 0:00:13]} Nc3 {[%emt 0:00:23]} 37. Rh8+ {[%emt 0:01:04]} Ke7 {[%emt 0:07:40]} 38. Rh7+ {[%emt 0:00:56]} Ke6 {[%emt 0:00:00] Black wants to play ...d4.} 39. Ra7 {[%emt 0:00:05]} Rd6 {[%emt 0:00:00]} (39... Nxa4 $2 40. Rxa6+ Rd6 41. Rxa4 $18) 40. a5 {[%emt 0:00:17]} d4 {[%emt 0:00:00]} 41. Nc4 {[%emt 0:31:02] [#]} d3 $1 {[%emt 0:27:26] White must now prevent ...Rc6.} 42. Nd2 {[%emt 0:00:00]} ({But not} 42. Nxd6 $2 d2 43. g3 d1=Q+ $19) (42. Rc7 Nb5) 42... Rc6 {[%emt 0:00:00][%cal Oc3e4]} 43. Nb3 $1 {[%emt 0:00:00]} Nb5 {[%emt 0:00:00] ...Rc1+ is the strong threat.} 44. Rxa6 $1 {[%emt 0:00:00]} Rxa6 {[%emt 0:00:00]} 45. Nc5+ {[%emt 0:00:00]} Kd5 {[%emt 0:00:00]} 46. Nxa6 {[%emt 0:00:00] KN-KN} Kc4 {[%emt 0:07:04]} 47. Ke1 {[%emt 0:00:00]} Kc3 $2 {[%emt 0:00:00] White stays focused until the end.} (47... f5 $1 $11 {and Black is okay.}) 48. Kd1 $2 {[%emt 0:00:00]} (48. Nc5 $18) 48... f5 {[%emt 0:00:00][%mdl 8192]} (48... Na3 $11 {and Black stays safe.} 49. Nc7 Nc4 50. Nd5+ (50. a6 {leads to mate.} Nb2+ 51. Ke1 d2+ 52. Ke2 d1=Q+ 53. Ke3 Nc4+ 54. Kf4 Qd6+ 55. Kg4 Ne5+ 56. Kg3 Nd3+ 57. Kf3 Qf4+ 58. Ke2 Qxf2+ 59. Kd1 Qf1#) 50... Kd4 51. Nxf6 Nxa5) 49. Nc5 $18 {[%emt 0:00:00]} Kd4 {[%emt 0:00:00]} 50. Na4 {[%emt 0:00:00] Strongly threatening Kd2.} Kc4 $2 {[%emt 0:00:00]} (50... Nc7 51. Kd2 Na6) 51. Kd2 {[%emt 0:00:00] White is clearly winning.} Kb4 {[%emt 0:00:00]} 52. Nb2 {[%emt 0:00:00]} Kxa5 {[%emt 0:00:00]} 53. Nxd3 {[%emt 0:00:00]} (53. h4 $142 Nc7 54. Nxd3) 53... Kb6 {[%emt 0:00:00]} 54. h4 {[%emt 0:00:01]} Nd6 {[%emt 0:00:00]} 55. Ke3 {[%emt 0:01:05]} Kc7 {[%emt 0:00:41]} 56. Ne5 {[%emt 0:00:27]} Kd8 {[%emt 0:00:18]} 57. Nxg6 {[%emt 0:00:07]} Ke8 {[%emt 0:00:06]} 58. Kf4 {[%emt 0:00:40]} Kf7 {[%emt 0:00:12]} 59. Ne5+ {[%emt 0:01:47]} Kf6 {[%emt 0:00:24]} 60. f3 {[%emt 0:01:13]} Ne8 {[%emt 0:00:22]} 61. Nd7+ {[%emt 0:01:11]} Ke6 {[%emt 0:00:17]} 62. Nb6 {[%emt 0:00:57]} Ng7 {[%emt 0:00:26]} 63. Kg5 {[%emt 0:00:18]} Ne8 {[%emt 0:00:34]} 64. Kg6 {[%emt 0:00:06]} Nd6 {[%emt 0:00:09]} 65. h5 {[%emt 0:00:26][%cal Bh4h5,Bh5h6][%mdl 32]} Nf7 {[%emt 0:00:06]} 66. h6 {[%emt 0:00:39]} Ne5+ {[%emt 0:00:44]} 67. Kg7 {[%emt 0:05:34] Weighted Error Value: White=0.43/Black=0.49} 1-0

[Event "Israeli Women Championship 2022"]
[Site "Yosiah Arad"]
[Date "2022.12.08"]
[Round "4.4"]
[White "Orian, Noga"]
[Black "Reprun, Nadejda"]
[Result "1-0"]
[ECO "D12"]
[WhiteElo "1947"]
[BlackElo "1979"]
[Annotator "TA"]
[PlyCount "121"]
[EventDate "2022.12.05"]
[EventType "tourn"]
[EventCountry "ISR"]
[SourceTitle "playchess.com"]
[Source "ChessBase"]
[SourceQuality "1"]
[TimeControl "40/5400+30:1800+30"]

{[%evp 12,121,25,16,25,15,26,14,33,11,30,16,39,7,28,2,64,17,35,20,18,12,20,41,25,14,14,-43,10,-11,17,8,8,16,21,-9,6,21,10,11,11,11,130,143,152,152,146,128,180,183,266,254,240,94,94,0,0,0,33,20,68,68,78,69,102,95,97,16,37,23,93,55,81,82,63,70,77,93,464,433,1156,1129,930,966,2516,1835,29949,29953,8768,5732,5181,3139,4822,1905,29947,6187,29972,29973,29975,29976,29977,29975,29978,29977,29977,29978,29978,29978,29978,29976,29977,29978]} 1. d4 {[%emt 0:00:02]} d5 {[%emt 0:00:04]} 2. c4 {[%emt 0:00:06]} c6 {[%emt 0:00:03]} 3. Nf3 {[%emt 0:00:06]} Nf6 {[%emt 0:00:04]} 4. e3 {[%emt 0:00:06]} Bf5 {[%emt 0:00:15]} 5. Nc3 {[%emt 0:00:08]} e6 {[%emt 0:00:04]} 6. Nh4 {[%emt 0:00:03]} Be4 {[%emt 0:00:50]} 7. f3 {[%emt 0:00:16]} Bg6 {[%emt 0:00:04] D12: Slav Defence: 3 Nf3 Nf6 4 e3 Bf5.} 8. Bd2 {[%emt 0:00:44]} Be7 {[%emt 0:00:51]} 9. Nxg6 {[%emt 0:00:10]} hxg6 {[%emt 0:00:06] The position is equal.} 10. Qb3 {[%emt 0:00:41]} Qc7 {[%emt 0:02:07]} 11. g3 {[%emt 0:11:22]} Nbd7 {[%emt 0:00:32]} 12. Kf2 {[%emt 0:02:08]} O-O {[%emt 0:22:08]} 13. Rc1 {[%emt 0:04:51]} Rac8 {[%emt 0:07:26]} (13... dxc4 $11 14. Bxc4 e5) 14. Kg2 {[%emt 0:08:45] [#]} (14. cxd5 $14 Nxd5 15. Bd3) 14... a6 $146 {[%emt 0:01:18]} ({Predecessor:} 14... dxc4 15. Bxc4 e5 16. dxe5 Nxe5 17. Be2 Rcd8 18. Rcd1 b5 19. e4 Qb6 20. Bf4 Nfd7 {½-½ (58) Goganov,A (2601)-Drygalov,S (2358) Samara 2015}) 15. a4 {[%emt 0:05:04]} dxc4 {[%emt 0:05:04]} 16. Bxc4 {[%emt 0:03:15]} b5 {[%emt 0:06:05]} 17. axb5 {[%emt 0:00:21]} axb5 {[%emt 0:00:17]} 18. Bd3 {[%emt 0:05:27]} Qd6 {[%emt 0:01:01]} 19. Na2 {[%emt 0:04:07]} (19. Ne2 $11) 19... Qb8 {[%emt 0:04:07]} (19... c5 $15 20. Bxb5 cxd4) 20. Rc2 {[%emt 0:10:42]} (20. Rhd1 {is interesting.} c5 21. Qxb5 Qa8 22. Nc3) 20... e5 {[%emt 0:05:19]} (20... c5 {is more complex.} 21. Bxb5 g5 22. Rf1 g4) 21. Rhc1 {[%emt 0:07:00]} exd4 {[%emt 0:00:33]} 22. exd4 {[%emt 0:00:01]} (22. Rxc6 $2 Rxc6 23. Rxc6 Ne5 $19) 22... Qb6 {[%emt 0:01:58]} 23. Bb4 {[%emt 0:07:53]} Rfe8 {[%emt 0:09:36]} 24. Bxg6 {[%emt 0:03:39]} Nd5 {[%emt 0:05:05]} 25. Be4 $36 {[%emt 0:00:09][%mdl 2048] White has the initiative. A strong pair of Bishops.} N7f6 {[%emt 0:02:29]} 26. Bxe7 {[%emt 0:00:11]} Rxe7 {[%emt 0:01:22]} (26... Nxe7 $11 {remains equal.} 27. Rd1 Rcd8) 27. Nb4 $16 {[%emt 0:01:26]} Nxb4 {[%emt 0:06:24]} 28. Qxb4 {[%emt 0:00:02]} Rec7 {[%emt 0:02:19]} 29. Rc5 {[%emt 0:04:09] White is more active.} Nxe4 {[%emt 0:03:34]} (29... Nd7 $16 {was worth a try.}) 30. fxe4 $18 {[%emt 0:00:02]} Ra8 {[%emt 0:01:04] [#]} (30... Ra7 {keeps fighting.} 31. d5 (31. Rxb5 Qd8 $18) 31... Ra4) 31. d5 $1 {[%emt 0:07:20]} Ra4 {[%emt 0:00:09]} 32. Qe1 {[%emt 0:00:57]} (32. Qd2 $18 {has better winning chances.}) 32... Re7 $16 {[%emt 0:02:08]} 33. e5 {[%emt 0:12:39]} ({Don't take} 33. dxc6 Raxe4 34. Qf1 Re2+ 35. Kh1 Re1 36. Rxe1 (36. Qxe1 $2 {is the wrong capture.} Rxe1+ 37. Rxe1 Qxc5 $19) 36... Qxc5) ({White should play} 33. Rxc6 $16 Qd4 34. d6 (34. Rc8+ Kh7 $14) 34... Rxe4 35. Qd1) 33... cxd5 $11 {[%emt 0:00:18]} 34. Qe2 {[%emt 0:01:41]} Qg6 {[%emt 0:02:12]} 35. Rxd5 {[%emt 0:00:39]} Qe4+ {[%emt 0:04:01]} (35... Re4 $11 {might be stronger.} 36. Qxb5 Qg4) 36. Qxe4 $14 {[%emt 0:00:06]} Rxe4 {[%emt 0:00:03]} 37. Rxb5 {[%emt 0:00:24]} R4xe5 {[%emt 0:00:05]} 38. Rxe5 {[%emt 0:00:09]} Rxe5 {[%emt 0:00:04][%mdl 4096] Endgame KR-KR} 39. Rc8+ {[%emt 0:01:29]} ({White should try} 39. Kf3 $16) 39... Kh7 $11 {[%emt 0:00:06]} 40. Kf3 {[%emt 0:01:00]} f5 {[%emt 0:04:57]} (40... Rb5 $11 {keeps the balance.}) 41. Rc4 {[%emt 0:03:48]} Rb5 {[%emt 0:07:56]} 42. b4 {[%emt 0:00:23]} g5 {[%emt 0:01:56]} 43. Ke3 {[%emt 0:00:54]} Kg6 {[%emt 0:01:15]} 44. Kd4 {[%emt 0:02:55]} g4 $2 {[%emt 0:03:10][%mdl 8192] This move loses the game for Black.} (44... Kh5 $16) 45. Rc6+ $18 {[%emt 0:02:29]} Kg5 {[%emt 0:00:15]} (45... Kf7 $142 46. Kc4 Re5) 46. Kc4 {[%emt 0:00:08]} Re5 {[%emt 0:01:05]} 47. Kb3 {[%emt 0:00:43]} Rd5 {[%emt 0:11:20]} 48. Rc2 {[%emt 0:01:09]} Kf6 {[%emt 0:00:56]} 49. Re2 {[%emt 0:01:35]} Rd4 {[%emt 0:02:32]} 50. Kc3 {[%emt 0:00:26]} Rd1 {[%emt 0:01:07]} 51. Kc4 {[%emt 0:00:51]} Rf1 {[%emt 0:00:41]} 52. Kc5 {[%emt 0:01:03]} (52. b5 $142 f4 53. gxf4) 52... f4 {[%emt 0:00:05]} 53. gxf4 {[%emt 0:00:07] [#] Intending b5 and mate.} Rxf4 {[%emt 0:00:12]} 54. b5 {[%emt 0:00:30][%cal Bb4b5,Bb5b6,Bb6b7][%mdl 32] White mates.} Rf3 {[%emt 0:00:10]} 55. b6 {[%emt 0:00:39]} Rb3 {[%emt 0:01:34]} 56. Kc6 {[%emt 0:00:11]} Kg5 {[%emt 0:00:46]} 57. b7 {[%emt 0:00:22]} Rc3+ {[%emt 0:00:42]} 58. Kd7 {[%emt 0:00:19]} Rd3+ {[%emt 0:00:37]} 59. Kc8 {[%emt 0:00:10]} Rc3+ {[%emt 0:00:17]} 60. Kb8 {[%emt 0:00:15]} Rb3 {[%emt 0:00:16]} 61. Rc2 {[%emt 0:00:19] Weighted Error Value: White=0.18 (very precise) /Black=0.66} 1-0

[Event "Israeli Women Championship 2022"]
[Site "Yosiah Arad"]
[Date "2022.12.08"]
[Round "4.5"]
[White "Brusilovski, Lena"]
[Black "Kluchik, Julia"]
[Result "0-1"]
[ECO "B28"]
[WhiteElo "1800"]
[BlackElo "1887"]
[Annotator "NA RC COMBH"]
[PlyCount "84"]
[EventDate "2022.12.05"]
[EventType "tourn"]
[EventCountry "ISR"]
[SourceTitle "playchess.com"]
[Source "ChessBase"]
[SourceQuality "1"]
[TimeControl "40/5400+30:1800+30"]

1. e4 {[%emt 0:03:33]} c5 {[%emt 0:00:22]} 2. Nf3 {[%emt 0:02:33]} a6 {[%emt 0:00:42]} 3. d4 {[%emt 0:13:38]} cxd4 {[%emt 0:00:10]} 4. Nxd4 {[%emt 0:00:07]} Nf6 {[%emt 0:00:15]} 5. Bd3 {[%emt 0:01:11]} e5 {[%emt 0:01:03]} 6. Nb3 {[%emt 0:02:14]} d6 {[%emt 0:12:29]} 7. h3 {[%emt 0:04:24]} Be7 {[%emt 0:00:56]} 8. O-O {[%emt 0:01:24]} Nbd7 {[%emt 0:06:50]} 9. Be3 {[%emt 0:08:03]} O-O {[%emt 0:01:15]} 10. Nc3 {[%emt 0:00:25]} Qc7 {[%emt 0:01:56]} 11. a4 {[%emt 0:04:12]} Nc5 {[%emt 0:07:17]} 12. Nxc5 {[%emt 0:02:09]} dxc5 {[%emt 0:00:06]} 13. Qe2 {[%emt 0:00:49]} Be6 {[%emt 0:02:32]} 14. b3 {[%emt 0:00:23]} Rac8 {[%emt 0:10:05]} 15. Bc4 {[%emt 0:01:41]} Qc6 {[%emt 0:01:55]} 16. Bg5 {[%emt 0:01:05]} Rfd8 {[%emt 0:05:47]} 17. Rad1 {[%emt 0:01:19]} Bxc4 {[%emt 0:05:10]} 18. Qxc4 {[%emt 0:00:34]} Rd4 {[%emt 0:00:13]} 19. Rxd4 {[%emt 0:02:00]} cxd4 {[%emt 0:02:21]} 20. Qxc6 {[%emt 0:01:11]} Rxc6 {[%emt 0:03:44]} 21. Nd5 {[%emt 0:02:33]} Nxd5 {[%emt 0:07:26]} 22. exd5 {[%emt 0:02:07]} Rc7 {[%emt 0:00:08]} 23. Bxe7 {[%emt 0:00:07]} Rxe7 {[%emt 0:00:01]} 24. c4 {[%emt 0:00:50]} dxc3 {[%emt 0:13:51]} 25. Rc1 {[%emt 0:01:36]} Rd7 {[%emt 0:00:23]} 26. Rxc3 {[%emt 0:00:08]} f5 {[%emt 0:00:13]} 27. Rd3 {[%emt 0:02:42]} Kf7 {[%emt 0:00:42]} 28. f3 {[%emt 0:01:10]} Ke7 {[%emt 0:06:41]} 29. a5 {[%emt 0:01:52]} Kd6 {[%emt 0:00:24]} 30. Kf2 {[%emt 0:39:30]} Kc5 {[%emt 0:10:33]} 31. Ke3 {[%emt 0:00:00]} Rxd5 {[%emt 0:00:00]} 32. Rc3+ {[%emt 0:00:00]} Kd6 {[%emt 0:00:00]} 33. Rc8 {[%emt 0:00:00]} Rxa5 {[%emt 0:00:00]} 34. Rh8 {[%emt 0:00:00]} Ra3 {[%emt 0:00:00]} 35. Rxh7 {[%emt 0:00:00]} Rxb3+ {[%emt 0:00:00]} 36. Kf2 {[%emt 0:00:00]} a5 {[%emt 0:00:00]} 37. Rxg7 {[%emt 0:00:00]} a4 {[%emt 0:00:00]} 38. Rg8 {[%emt 0:00:00]} a3 {[%emt 0:04:00]} 39. Ra8 {[%emt 0:00:00]} b5 {[%emt 0:00:00]} 40. g4 {[%emt 0:00:00]} fxg4 {[%emt 0:00:00]} 41. hxg4 {[%emt 0:00:45]} b4 {[%emt 0:29:31]} 42. g5 {[%emt 0:00:15]} Ke6 {[%emt 0:00:19]} 0-1

[Event "Israeli Women Championship 2022"]
[Site "Yosiah Arad"]
[Date "2022.12.09"]
[Round "5.1"]
[White "Efroimski, Marsel"]
[Black "Brusilovski, Lena"]
[Result "1-0"]
[ECO "B23"]
[WhiteElo "2470"]
[BlackElo "1800"]
[Annotator "TA"]
[PlyCount "59"]
[EventDate "2022.12.05"]
[EventType "tourn"]
[EventCountry "ISR"]
[SourceTitle "playchess.com"]
[Source "ChessBase"]
[SourceQuality "1"]
[TimeControl "40/5400+30:1800+30"]

{[%evp 9,59,20,16,7,20,24,49,38,100,106,99,98,126,125,130,122,281,128,216,64,80,108,106,33,52,54,39,8,135,71,86,0,47,60,147,4,110,93,103,105,119,-11,95,93,177,114,186,120,358,358,877,860]} 1. e4 {[%emt 0:00:02]} c5 {[%emt 0:00:36]} 2. Nc3 {[%emt 0:00:04]} Nc6 {[%emt 0:00:36]} 3. Bb5 {[%emt 0:00:03]} a6 {[%emt 0:01:12]} 4. Bxc6 {[%emt 0:00:11]} dxc6 {[%emt 0:00:03]} 5. d3 {[%emt 0:00:37]} e5 {[%emt 0:02:38]} 6. Be3 {[%emt 0:00:07] [#] B23: Closed Sicilian: Lines without g3.} b5 $146 {[%emt 0:03:32]} ({Predecessor:} 6... Nf6 7. h3 Be7 8. Qd2 O-O 9. Nge2 Be6 10. O-O Qc7 11. f4 Nd7 12. f5 Bxf5 13. exf5 Rad8 14. Ng3 c4 15. Nge4 cxd3 16. cxd3 c5 17. Nd5 Qd6 18. Nxd6 {1-0 (18) Gevorgyan,M (2219)-Cramling Bellon,A (2035) Chess.com INT 2021}) 7. Nge2 {[%emt 0:02:40]} Be6 {[%emt 0:01:26]} 8. f4 {[%emt 0:00:17] White is slightly better.} f6 {[%emt 0:00:25]} (8... Nf6 $14) 9. O-O $16 {[%emt 0:01:50]} Qc7 {[%emt 0:01:59]} 10. Qe1 {[%emt 0:02:41]} exf4 {[%emt 0:00:53]} 11. Nxf4 {[%emt 0:00:48]} Bf7 {[%emt 0:00:22]} 12. Qf2 $1 {[%emt 0:00:03]} c4 $2 {[%emt 0:00:45] [#]} (12... Bd6 $16) 13. d4 {[%emt 0:03:00]} (13. e5 $1 $18 {[%cal Re5f6] is the precise move to win.}) 13... Bd6 {[%emt 0:02:49]} (13... Nh6 $16) 14. Rae1 $2 {[%emt 0:01:33]} (14. e5 $18 Be7 15. Qf3) 14... O-O-O $1 $14 {[%emt 0:07:28]} 15. Kh1 {[%emt 0:02:05][%cal Oe4e5] Black must now prevent e5!} Re8 {[%emt 0:04:59] Against e5} 16. a3 {[%emt 0:01:19]} (16. Nfe2 $16) 16... h5 {[%emt 0:01:29]} 17. Nfe2 {[%emt 0:00:41][%cal Oe4e5]} (17. Nh3 $5 {[%cal Re4e5]}) 17... Nh6 $1 {[%emt 0:00:49] Against e5} 18. Bf4 {[%emt 0:01:37]} (18. e5 Ng4 19. Qg3 (19. Qf5+ Be6 $17) 19... fxe5 $17) 18... Bg6 {[%emt 0:00:41] [#]} (18... Ng4 $11 19. Qg3 Bxf4 20. Qxf4 (20. Nxf4 Qd7 $11) 20... Qxf4 21. Nxf4 Kc7) 19. Qg3 {[%emt 1:20:22]} ({Better is} 19. d5 $1) 19... Bxf4 $16 {[%emt 0:01:29]} 20. Qxf4 {[%emt 0:00:00]} (20. Nxf4 $16 Bf7 21. e5 (21. Qxg7 $2 {too greedy.} Ng4 $19)) 20... Qd7 {[%emt 0:03:05]} (20... Kb8 $11) 21. b4 {[%emt 0:00:00]} Qg4 {[%emt 0:05:15]} ({Black should play} 21... Nf7 $14) 22. Qxg4+ {[%emt 0:00:00]} (22. Qf2 $16) 22... Nxg4 {[%emt 0:02:17]} (22... hxg4 $11 23. Nf4 Bh7) 23. Nf4 {[%emt 0:00:00]} Bf7 {[%emt 0:01:30]} 24. h3 $36 {[%emt 0:00:00][%mdl 2048] Prevents g5. White has strong initiative.} Nh6 {[%emt 0:56:12]} 25. d5 {[%emt 0:00:00]} (25. Ra1 $16) 25... Re5 {[%emt 0:00:00]} (25... cxd5 $11 {keeps the balance.} 26. Ncxd5 (26. Nfxd5 Bxd5 27. exd5 Kd7 $11) (26. exd5 Nf5 $17) 26... Bxd5 27. exd5 Rxe1 28. Rxe1 Nf5) 26. dxc6 {[%emt 0:00:00] Threatens to win with a4.} Be8 {[%emt 0:00:00]} (26... Rd8 $16 {is a better defense.}) 27. Rd1 {[%emt 0:00:00]} (27. a4 $18) 27... Kc7 {[%emt 0:00:00]} (27... Rh7 $16 {might work better.}) 28. Rd4 {[%emt 0:00:00]} ({White should try} 28. a4 $18) 28... f5 $2 {[%emt 0:00:00]} (28... Rg8 $16) 29. Rd5 $18 {[%emt 0:00:00]} Re7 {[%emt 0:00:00]} (29... Rxd5 30. exd5 Bf7) 30. Rc5 {[%emt 0:00:00] Weighted Error Value: White=0.50/Black=0.53} 1-0